bitfinex-derivatives/quotes_BTCF0:USTF0_20210105
["timestamp","ask_amount","ask_price","bid_price","bid_amount"]
[1609889940703,1.0,33902.0,33893.0,4.96692608]
[1609889940903,0.14277,33903.0,33893.0,4.96692608]
[1609889941303,0.14018,33911.0,33893.0,4.96692608]
[1609889941504,0.14018,33911.0,33904.0,0.6292]
[1609889941704,0.13632608,33912.0,33904.0,0.6292]
[1609889943404,0.13632608,33912.0,33911.0,0.13632608]
[1609889943606,1.0,33918.0,33911.0,0.13632608]
[1609889943806,1.0,33918.0,33911.0,3.50142608]
[1609889944907,1.0,33930.0,33913.0,1.0]
[1609889945909,3.9113,33929.0,33913.0,1.0]
[1609889946110,4.12968,33929.0,33913.0,1.0]
[1609889946809,1.0,33922.0,33905.0,1.0]
[1609889947010,0.0886,33921.0,33905.0,1.0]
[1609889947410,0.0886,33921.0,33916.0,0.13632608]
[1609889947812,1.14549,33922.0,33916.0,0.13632608]
[1609889948813,1.0,33917.0,33916.0,0.13632608]
[1609889949413,1.13632608,33917.0,33916.0,0.13632608]
[1609889950923,0.13632608,33917.0,33916.0,0.13632608]
[1609889954824,1.13632608,33917.0,33916.0,0.13632608]
[1609889955031,1.13632608,33917.0,33903.0,4.4275]
[1609889955433,0.13632608,33904.0,33903.0,0.13632608]
[1609889955631,0.26075608,33904.0,33903.0,0.13632608]
[1609889957127,0.34895608,33904.0,33903.0,0.13632608]
[1609889957927,0.26075608,33904.0,33903.0,0.13632608]
[1609889959030,0.34845608,33904.0,33903.0,0.13632608]
[1609889959529,0.26075608,33904.0,33903.0,0.13632608]
[1609889960531,0.21233,33904.0,33903.0,0.13632608]
[1609889960833,0.12443,33904.0,33903.0,0.13632608]
[1609889961131,1.0,33916.0,33903.0,0.13632608]
[1609889961535,0.13632608,33904.0,33903.0,0.13632608]
[1609889961933,0.22532608,33904.0,33903.0,0.13632608]
[1609889962133,0.13632608,33904.0,33903.0,0.13632608]
[1609889964235,0.22392608,33904.0,33903.0,0.13632608]
[1609889965134,0.13632608,33904.0,33903.0,0.13632608]
[1609889966137,0.22522608,33904.0,33903.0,0.13632608]
[1609889966837,0.0889,33904.0,33903.0,0.13632608]
[1609889967238,0.0889,33904.0,33903.0,4.15462608]
[1609889967437,0.10959,33905.0,33903.0,4.15462608]
[1609889967838,1.0,33913.0,33903.0,4.15462608]
[1609889968841,0.13632608,33915.0,33903.0,4.15462608]
[1609889969542,0.13632608,33911.0,33910.0,0.13632608]
[1609889969945,0.24307608,33911.0,33910.0,0.13632608]
[1609889970745,0.33167608,33911.0,33910.0,0.13632608]
[1609889971352,0.19535,33911.0,33910.0,0.13632608]
[1609889972647,0.10675,33911.0,33910.0,0.13632608]
[1609889972846,0.10675,33911.0,33910.0,1.13632608]
[1609889973749,0.19625,33911.0,33910.0,1.13632608]
[1609889974148,0.10675,33911.0,33910.0,1.13632608]
[1609889974649,0.14549,33922.0,33910.0,1.13632608]
[1609889974849,0.13632608,33927.0,33910.0,1.13632608]
[1609889975651,0.13632608,33927.0,33926.0,0.13632608]
[1609889977152,0.13632608,33927.0,33914.0,4.4236]
[1609889977552,0.55098187,33929.0,33914.0,4.4236]
[1609889977553,0.55098187,33929.0,33917.0,0.13632608]
[1609889978953,0.55098187,33929.0,33919.0,3.73]
[1609889979153,0.55098187,33929.0,33917.0,0.13632608]
[1609889979557,0.55098187,33929.0,33926.0,0.13632608]
[1609889979755,0.55098187,33929.0,33928.0,4.4238]
[1609889980557,0.42020187,33929.0,33928.0,4.4238]
[1609889980955,0.42020187,33929.0,33928.0,5.4238]
[1609889982857,0.42020187,33929.0,33928.0,4.4238]
[1609889983057,0.42020187,33929.0,33928.0,5.4238]
[1609889990966,0.42020187,33929.0,33928.0,4.4238]
[1609889993766,0.54039187,33929.0,33928.0,4.4238]
[1609889997368,0.42020187,33929.0,33928.0,4.4238]
[1609889998869,0.42020187,33929.0,33928.0,5.4238]
[1609890000871,0.42020187,33929.0,33928.0,4.4238]
[1609890005678,0.42020187,33929.0,33927.0,1.0]
[1609890006877,0.42020187,33929.0,33926.0,0.13632608]
[1609890007076,0.42020187,33929.0,33927.0,0.5946]
[1609890007279,0.42020187,33929.0,33926.0,0.13632608]
[1609890007477,0.42020187,33929.0,33911.0,0.1771]
[1609890007679,0.42020187,33929.0,33922.0,0.13632608]
[1609890008880,1.0,33923.0,33922.0,0.13632608]
[1609890009081,1.12846,33923.0,33922.0,0.13632608]
[1609890009681,1.26478608,33923.0,33922.0,0.13632608]
[1609890014888,0.26478608,33923.0,33922.0,0.13632608]
[1609890016389,0.26478608,33923.0,33912.0,1.0]
[1609890016590,4.56828608,33923.0,33912.0,1.0]
[1609890016991,4.56828608,33923.0,33911.0,0.1771]
[1609890017190,4.56828608,33923.0,33904.0,3.9082]
[1609890017791,4.43196,33923.0,33910.0,0.13632608]
[1609890018593,4.43196,33923.0,33904.0,3.9082]
[1609890018894,1.0,33911.0,33904.0,3.9082]
[1609890019295,1.10558,33911.0,33904.0,3.9082]
[1609890019793,0.13632608,33905.0,33904.0,4.04452608]
[1609890020496,0.13632608,33905.0,33904.0,0.13632608]
[1609890020898,1.13632608,33905.0,33904.0,0.13632608]
[1609890022899,0.13632608,33905.0,33904.0,0.13632608]
[1609890024600,3.83492608,33905.0,33904.0,0.13632608]
[1609890024902,1.13632608,33905.0,33904.0,0.13632608]
[1609890030409,1.0,33905.0,33904.0,4.07822608]
[1609890031009,0.12846,33923.0,33904.0,4.07822608]
[1609890031209,0.2901,33928.0,33904.0,4.17170608]
[1609890032010,0.2901,33928.0,33911.0,0.13632608]
[1609890034015,0.13632608,33912.0,33911.0,0.13632608]
[1609890034214,0.27856608,33912.0,33911.0,0.13632608]
[1609890036417,0.14224,33912.0,33911.0,4.21702608]
[1609890036614,0.11066,33922.0,33911.0,4.21702608]
[1609890036815,0.11066,33922.0,33911.0,4.34280608]
[1609890037016,0.11066,33922.0,33911.0,5.34280608]
[1609890037717,0.09796,33932.0,33911.0,5.34280608]
[1609890037917,0.13632608,33930.0,33928.0,0.13632608]
[1609890038418,0.13632608,33930.0,33928.0,0.65152608]
[1609890039418,0.13632608,33930.0,33928.0,0.5152]
[1609890039619,0.13632608,33930.0,33917.0,0.1771]
[1609890040024,0.13632608,33918.0,33917.0,0.1771]
[1609890040218,0.28633608,33918.0,33917.0,0.1771]
[1609890041019,1.28633608,33918.0,33917.0,0.1771]
[1609890041419,1.28633608,33918.0,33904.0,2.00468639]
[1609890042019,0.13632608,33905.0,33904.0,2.00468639]
[1609890042420,0.23810608,33905.0,33904.0,2.00468639]
[1609890043021,1.23810608,33905.0,33897.0,2.0201137]
[1609890043921,0.13632608,33898.0,33897.0,2.0201137]
[1609890044120,0.27543608,33898.0,33897.0,2.0201137]
[1609890044322,0.36383608,33898.0,33897.0,2.6728137]
[1609890044523,0.36383608,33898.0,33897.0,0.6527]
[1609890046023,0.36383608,33898.0,33897.0,0.78902608]
[1609890046624,0.27543608,33898.0,33897.0,0.78902608]
[1609890047728,0.36473608,33898.0,33897.0,0.78902608]
[1609890047927,0.27543608,33898.0,33897.0,0.78902608]
[1609890049730,0.13911,33898.0,33897.0,0.78902608]
[1609890049930,1.0,33901.0,33897.0,0.78902608]
[1609890050130,1.0,33901.0,33897.0,0.13632608]
[1609890050331,1.0,33901.0,33900.0,4.6134]
[1609890050931,1.15001,33918.0,33900.0,5.6134]
[1609890051130,1.15001,33918.0,33899.0,0.1771]
[1609890051131,1.0,33912.0,33899.0,0.1771]
[1609890052032,1.0,33912.0,33906.0,0.13632608]
[1609890053131,1.0,33917.0,33906.0,0.13632608]
[1609890053931,1.0,33917.0,33900.0,1.0]
[1609890053932,1.0,33917.0,33916.0,0.13632608]
[1609890055233,1.0,33918.0,33916.0,0.13632608]
[1609890056033,0.13632608,33917.0,33916.0,0.13632608]
[1609890056234,0.23478608,33917.0,33912.0,4.2934]
[1609890057235,1.0,33913.0,33912.0,4.2934]
[1609890058037,1.13632608,33913.0,33912.0,4.2934]
[1609890064046,1.0,33913.0,33912.0,4.2934]
[1609890065246,0.51395697,33917.0,33912.0,4.2934]
[1609890066049,0.51395697,33917.0,33916.0,0.13632608]
[1609890067048,0.37763089,33917.0,33916.0,0.13632608]
[1609890067249,0.37763089,33917.0,33916.0,1.13632608]
[1609890069254,0.37763089,33917.0,33916.0,0.13632608]
[1609890071259,0.37763089,33917.0,33916.0,1.13632608]
[1609890075263,0.37763089,33917.0,33916.0,0.13632608]
[1609890082671,0.37763089,33917.0,33910.0,4.6117]
[1609890082871,0.47542089,33917.0,33910.0,4.6117]
[1609890083170,1.0,33911.0,33910.0,4.6117]
[1609890083571,1.0,33911.0,33903.0,2.0535856]
[1609890083970,1.0,33911.0,33903.0,2.5363856]
[1609890084172,1.0,33911.0,33909.0,0.13632608]
[1609890085272,0.47542089,33917.0,33909.0,0.13632608]
[1609890086174,0.25653608,33910.0,33909.0,0.13632608]
[1609890087177,1.25653608,33910.0,33906.0,4.3808]
[1609890088075,1.25653608,33910.0,33906.0,4.51712608]
[1609890088577,1.25653608,33910.0,33906.0,0.13632608]
[1609890089177,0.25653608,33910.0,33906.0,0.13632608]
[1609890092084,0.25653608,33910.0,33902.0,0.13632608]
[1609890092787,0.25653608,33910.0,33908.0,4.6494]
[1609890092987,0.47542089,33917.0,33908.0,4.6494]
[1609890094188,0.47542089,33917.0,33916.0,0.13632608]
[1609890098594,0.47542089,33917.0,33908.0,4.6494]
[1609890099196,1.0,33913.0,33908.0,4.6494]
[1609890100196,1.0,33913.0,33912.0,0.13632608]
[1609890101197,0.47542089,33917.0,33912.0,0.13632608]
[1609890102098,0.47542089,33917.0,33916.0,0.13632608]
[1609890103600,0.47542089,33917.0,33908.0,4.6494]
[1609890104099,0.13632608,33909.0,33908.0,4.6494]
[1609890104502,0.27717608,33909.0,33907.0,0.13632608]
[1609890119631,0.27717608,33909.0,33908.0,0.6789]
[1609890119830,0.14085,33909.0,33908.0,0.6789]
[1609890120031,1.0,33912.0,33908.0,0.6789]
[1609890120231,1.0,33912.0,33911.0,0.13632608]
[1609890120433,1.0,33912.0,33911.0,3.64252608]
[1609890121233,0.13632608,33914.0,33911.0,3.64252608]
[1609890121433,0.13632608,33914.0,33911.0,0.13632608]
[1609890122133,0.13632608,33914.0,33907.0,0.13632608]
[1609890123234,1.0,33912.0,33907.0,0.13632608]
[1609890124236,0.13632608,33908.0,33907.0,0.13632608]
[1609890124438,0.22655608,33908.0,33907.0,0.13632608]
[1609890126336,0.09023,33908.0,33907.0,0.13632608]
[1609890128241,0.22655608,33908.0,33907.0,0.13632608]
[1609890143965,0.22655608,33908.0,33900.0,2.12293086]
[1609890144365,0.09023,33908.0,33905.0,0.13632608]
[1609890144564,1.0,33910.0,33905.0,0.13632608]
[1609890145164,0.47542089,33917.0,33899.0,2.30736237]
[1609890145364,3.3998,33900.0,33899.0,2.30736237]
[1609890145565,3.53698,33900.0,33899.0,2.13026237]
[1609890146368,3.67330608,33900.0,33899.0,2.13026237]
[1609890147370,0.27350608,33900.0,33899.0,2.13026237]
[1609890148667,3.7617,33906.0,33899.0,2.13026237]
[1609890149068,1.0,33900.0,33899.0,1.35076237]
[1609890149268,1.09788,33900.0,33899.0,1.35076237]
[1609890150269,1.23420608,33900.0,33899.0,1.35076237]
[1609890150870,1.23420608,33900.0,33889.0,2.29916897]
[1609890152370,0.13632608,33890.0,33889.0,2.29916897]
[1609890152772,0.13632608,33890.0,33887.0,3.5287]
[1609890152973,1.13632608,33890.0,33871.0,0.4525948]
[1609890154376,0.13632608,33881.0,33870.0,1.0]
[1609890154978,0.13632608,33881.0,33865.0,6.00477886]
[1609890156377,0.09428,33884.0,33873.0,0.13632608]
[1609890156978,1.0,33880.0,33873.0,0.13632608]
[1609890157782,1.0,33880.0,33865.0,3.6986]
[1609890158382,1.0,33880.0,33871.0,0.13632608]
[1609890159084,1.0,33880.0,33879.0,4.3135]
[1609890160183,0.116,33880.0,33879.0,4.3135]
[1609890160383,0.01294221,33900.0,33879.0,10.44982608]
[1609890160589,0.00376685,33908.0,33879.0,10.44982608]
[1609890160784,0.00376685,33908.0,33880.0,0.1771]
[1609890161386,0.09381,33910.0,33882.0,2.10229771]
[1609890161786,0.283,33914.0,33882.0,2.10229771]
[1609890162187,0.283,33914.0,33885.0,2.21393824]
[1609890162386,0.283,33914.0,33912.0,0.13632608]
[1609890162987,1.0,33919.0,33912.0,0.13632608]
[1609890163187,1.0,33919.0,33916.0,3.5244]
[1609890164394,0.13632608,33922.0,33918.0,0.13632608]
[1609890164793,1.0,33929.0,33918.0,0.13632608]
[1609890165192,1.0,33929.0,33926.0,4.0719]
[1609890166503,0.01291059,33939.0,33928.0,1.13632608]
[1609890167096,0.01291059,33939.0,33938.0,3.6942]
[1609890167999,0.00376389,33942.0,33938.0,3.6942]
[1609890168400,0.00376389,33942.0,33941.0,0.13632608]
[1609890169202,2.01636206,33957.0,33941.0,0.13632608]
[1609890169203,0.00376284,33954.0,33941.0,0.13632608]
[1609890169602,0.00376284,33954.0,33938.0,4.46789856]
[1609890169803,0.101,33954.0,33938.0,4.46789856]
[1609890170303,0.13632608,33953.0,33952.0,0.13632608]
[1609890173209,0.13632608,33953.0,33952.0,4.85262608]
[1609890176613,0.101,33954.0,33952.0,4.85262608]
[1609890177213,1.0,33961.0,33952.0,4.85262608]
[1609890177813,1.0,33961.0,33952.0,0.13632608]
[1609890178113,1.0,33961.0,33960.0,4.8266]
[1609890178514,0.00375305,33962.0,33960.0,5.96292608]
[1609890178815,0.01286435,33966.0,33960.0,5.96292608]
[1609890180417,0.01286435,33966.0,33965.0,1.13632608]
[1609890181416,0.13632608,33970.0,33965.0,1.13632608]
[1609890181618,0.13632608,33970.0,33968.0,4.1918]
[1609890182116,0.00374989,33975.0,33968.0,4.1918]
[1609890182518,0.00374989,33975.0,33974.0,0.13632608]
[1609890185124,0.00374989,33975.0,33974.0,3.65012608]
[1609890186623,0.00374989,33975.0,33974.0,0.13632608]
[1609890186825,0.13632608,33977.0,33974.0,0.13632608]
[1609890187824,0.13632608,33977.0,33959.0,0.10187]
[1609890188025,0.13632608,33977.0,33927.0,2.40574953]
[1609890188026,0.23632608,33977.0,33912.0,2.18635841]
[1609890188226,0.23632608,33977.0,33940.0,4.4675]
[1609890188227,3.3791,33970.0,33940.0,4.4675]
[1609890188424,0.13632608,33968.0,33957.0,0.13632608]
[1609890189426,0.0888,33967.0,33961.0,3.972]
[1609890190134,0.14118,33970.0,33961.0,3.972]
[1609890190530,0.14118,33970.0,33969.0,0.13632608]
[1609890191529,0.22948,33970.0,33969.0,0.13632608]
[1609890192731,0.22948,33970.0,33967.0,1.0]
[1609890193130,0.14118,33970.0,33967.0,1.0]
[1609890193530,0.12059,33970.0,33967.0,1.0]
[1609890194531,0.12059,33970.0,33957.0,4.367]
[1609890194532,0.13632608,33968.0,33960.0,0.13632608]
[1609890195332,0.0894,33967.0,33960.0,0.13632608]
[1609890196332,0.13632608,33968.0,33960.0,0.13632608]
[1609890196531,0.13632608,33962.0,33960.0,0.13632608]
[1609890196735,0.26073608,33962.0,33960.0,0.13632608]
[1609890198233,0.12441,33962.0,33960.0,0.13632608]
[1609890200436,0.12441,33962.0,33961.0,1.0]
[1609890201737,0.12059,33970.0,33961.0,1.0]
[1609890202141,0.13632608,33975.0,33961.0,1.0]
[1609890202538,1.0,33976.0,33965.0,0.13632608]
[1609890204440,0.13632608,33966.0,33965.0,0.13632608]
[1609890204642,0.26635608,33966.0,33965.0,0.13632608]
[1609890206845,0.20678322,33962.0,33957.0,4.367]
[1609890208246,0.26635608,33966.0,33957.0,4.367]
[1609890208447,0.26635608,33966.0,33965.0,0.13632608]
[1609890208647,0.41297418,33966.0,33965.0,0.13632608]
[1609890209449,0.41297418,33966.0,33965.0,4.82312608]
[1609890210855,0.41297418,33966.0,33965.0,0.13632608]
[1609890213456,0.41297418,33966.0,33954.0,4.1539]
[1609890214159,0.41297418,33966.0,33949.0,5.0]
[1609890214359,1.41297418,33966.0,33949.0,1.0]
[1609890214559,0.13632608,33950.0,33949.0,1.0]
[1609890214760,0.28542608,33950.0,33949.0,1.0]
[1609890216362,0.28542608,33950.0,33940.0,3.8986]
[1609890216562,0.1491,33950.0,33942.0,0.13632608]
[1609890218164,0.1491,33950.0,33949.0,4.634]
[1609890218563,0.28542608,33950.0,33949.0,4.77032608]
[1609890220467,0.1491,33950.0,33949.0,4.77032608]
[1609890221069,0.13632608,33954.0,33949.0,4.77032608]
[1609890221469,0.00370182,33965.0,33949.0,4.77032608]
[1609890221670,0.00370182,33965.0,33949.0,0.13632608]
[1609890221870,0.2766481,33966.0,33949.0,0.13632608]
[1609890222571,0.2766481,33966.0,33962.0,0.13632608]
[1609890223571,0.2758,33975.0,33965.0,6.0]
[1609890223772,0.2758,33975.0,33965.0,9.9194]
[1609890224171,0.2708,33976.0,33965.0,9.9194]
[1609890224570,0.13632608,33966.0,33965.0,9.9194]
[1609890224771,0.26661608,33966.0,33965.0,9.9194]
[1609890224972,0.2708,33976.0,33965.0,9.9194]
[1609890225171,0.10273,33966.0,33965.0,3.9194]
[1609890225372,0.10273,33966.0,33965.0,6.0]
[1609890226073,0.27456875,33976.0,33965.0,6.0]
[1609890226573,0.13632608,33966.0,33965.0,6.0]
[1609890226772,0.22734608,33966.0,33965.0,6.0]
[1609890228277,0.22734608,33966.0,33962.0,0.13632608]
[1609890228475,0.22734608,33966.0,33962.0,0.02108446]
[1609890228675,0.22734608,33966.0,33958.0,0.13632608]
[1609890229076,0.69364652,33966.0,33958.0,0.13632608]
[1609890230276,0.69364652,33966.0,33965.0,6.0]
[1609890230777,0.00376877,33975.0,33965.0,6.0]
[1609890232579,0.13632608,33966.0,33965.0,6.13632608]
[1609890232980,0.14859,33966.0,33965.0,6.13632608]
[1609890233980,0.2837228,33976.0,33965.0,6.13632608]
[1609890234181,0.27457009,33976.0,33965.0,6.13632608]
[1609890234581,0.27457009,33976.0,33969.0,0.13632608]
[1609890235182,0.01297426,33973.0,33969.0,0.13632608]
[1609890236481,0.01297426,33973.0,33958.0,0.1771]
[1609890236683,0.01297426,33973.0,33964.0,0.13632608]
[1609890238284,0.01297426,33973.0,33972.0,6.0]
[1609890238484,0.0091901,33973.0,33972.0,6.0]
[1609890238684,0.14551618,33973.0,33972.0,6.0]
[1609890239686,0.67716222,33973.0,33972.0,6.0]
[1609890240585,0.13632608,33973.0,33972.0,6.0]
[1609890244690,0.13632608,33973.0,33972.0,6.13632608]
[1609890246291,0.13632608,33973.0,33972.0,6.64972608]
[1609890247591,0.13632608,33973.0,33972.0,6.13632608]
[1609890247790,0.13632608,33973.0,33972.0,6.0]
[1609890248293,0.13632608,33973.0,33958.0,0.1771]
[1609890248496,0.13632608,33973.0,33972.0,6.0]
[1609890252000,0.14011343,33973.0,33972.0,6.0]
[1609890253902,0.13632608,33973.0,33972.0,6.0]
[1609890254302,0.13632608,33973.0,33964.0,0.13632608]
[1609890254701,0.13632608,33965.0,33964.0,0.13632608]
[1609890255105,0.27865608,33965.0,33950.0,3.8057]
[1609890255301,0.27865608,33965.0,33946.0,0.1771]
[1609890255503,3.9429,33962.0,33946.0,0.1771]
[1609890256704,0.27865608,33965.0,33946.0,0.1771]
[1609890256705,0.14233,33965.0,33947.0,0.13632608]
[1609890257105,0.14233,33965.0,33947.0,5.02062608]
[1609890257305,0.14233,33965.0,33947.0,4.8843]
[1609890257506,0.14233,33965.0,33946.0,0.1771]
[1609890257708,4.6068,33962.0,33946.0,0.1771]
[1609890257906,4.6068,33962.0,33945.0,2.24119839]
[1609890258106,4.6068,33962.0,33942.0,2.24362237]
[1609890258305,4.6068,33962.0,33961.0,1.0]
[1609890258607,0.14233,33965.0,33961.0,1.0]
[1609890258807,0.13632608,33962.0,33961.0,1.0]
[1609890260312,0.13632608,33962.0,33945.0,3.8079]
[1609890260510,0.13632608,33962.0,33946.0,0.1771]
[1609890260708,0.13632608,33947.0,33946.0,0.1771]
[1609890262309,0.13632608,33947.0,33946.0,6.1771]
[1609890265416,3.97652608,33947.0,33946.0,5.866]
[1609890265616,3.97652608,33947.0,33946.0,1.0]
[1609890266616,3.97652608,33947.0,33946.0,0.0001]
[1609890266814,3.97652608,33947.0,33928.0,2.23397749]
[1609890267016,3.97652608,33947.0,33923.0,3.9693]
[1609890267017,3.97652608,33947.0,33946.0,1.0]
[1609890267619,3.97652608,33947.0,33946.0,0.7306]
[1609890268018,3.97652608,33947.0,33942.0,1.0]
[1609890268217,0.13632608,33947.0,33942.0,1.0]
[1609890268818,0.13632608,33943.0,33942.0,1.0]
[1609890269218,0.24031608,33943.0,33942.0,1.0]
[1609890270018,0.24031608,33943.0,33923.0,4.2357]
[1609890270820,0.13632608,33924.0,33923.0,4.2357]
[1609890272121,0.13632608,33924.0,33923.0,10.2357]
[1609890272930,0.10799,33927.0,33923.0,10.2357]
[1609890273724,0.10399,33943.0,33923.0,10.2357]
[1609890273926,0.10399,33943.0,33924.0,0.1771]
[1609890274325,4.8685,33944.0,33924.0,0.1771]
[1609890274528,4.8685,33944.0,33923.0,4.2357]
[1609890274726,4.99181,33944.0,33925.0,0.13632608]
[1609890276028,4.99181,33944.0,33943.0,1.0]
[1609890276729,5.12813608,33944.0,33943.0,1.0]
[1609890277936,6.62813608,33944.0,33943.0,1.0]
[1609890278143,1.75963608,33944.0,33899.0,0.13617]
[1609890278532,3.7944,33929.0,33899.0,0.13617]
[1609890278731,0.13632608,33900.0,33899.0,0.13617]
[1609890279131,0.13632608,33900.0,33897.0,2.24452529]
[1609890279933,0.13632608,33900.0,33892.0,0.2814]
[1609890279934,0.13632608,33900.0,33899.0,6.0]
[1609890283738,0.14805,33902.0,33899.0,6.0]
[1609890284337,4.2704,33919.0,33899.0,6.0]
[1609890284938,4.2704,33919.0,33901.0,0.13632608]
[1609890286140,0.2909,33928.0,33918.0,6.0]
[1609890286341,4.8654,33926.0,33918.0,6.0]
[1609890286944,0.13632608,33919.0,33918.0,6.0]
[1609890287140,0.24334608,33919.0,33918.0,6.0]
[1609890288041,0.24334608,33919.0,33902.0,4.6893]
[1609890288844,0.13632608,33903.0,33902.0,4.6893]
[1609890289042,0.28562608,33903.0,33901.0,0.13632608]
[1609890290141,0.28562608,33903.0,33902.0,6.0]
[1609890296049,0.28562608,33903.0,33897.0,0.13632608]
[1609890296851,0.1493,33903.0,33901.0,0.13632608]
[1609890297453,3.9121,33914.0,33889.0,0.1771]
[1609890298952,0.23607608,33890.0,33889.0,0.1771]
[1609890299752,0.23607608,33890.0,33884.0,0.2955]
[1609890300152,0.23607608,33890.0,33889.0,6.0]
[1609890304162,0.23607608,33890.0,33889.0,1.0]
[1609890305363,0.94257608,33890.0,33889.0,1.0]
[1609890306164,0.94257608,33890.0,33871.0,3.9676]
[1609890306865,0.13632608,33872.0,33871.0,3.9676]
[1609890307265,0.13632608,33872.0,33865.0,0.13632608]
[1609890308869,0.13632608,33866.0,33865.0,0.13632608]
[1609890309071,0.27281608,33866.0,33857.0,0.2826]
[1609890310074,0.27281608,33866.0,33865.0,6.0]
[1609890311373,0.11411,33873.0,33865.0,6.0]
[1609890311773,0.11411,33873.0,33863.0,3.56022608]
[1609890312174,0.11411,33873.0,33863.0,0.13632608]
[1609890312575,4.4826,33887.0,33863.0,0.13632608]
[1609890312773,0.2841,33889.0,33864.0,0.1771]
[1609890312974,0.13632608,33865.0,33864.0,0.1771]
[1609890313173,0.28594608,33865.0,33863.0,0.13632608]
[1609890319684,0.28594608,33865.0,33864.0,6.0]
[1609890321788,0.28594608,33865.0,33863.0,0.13632608]
[1609890323087,0.28594608,33865.0,33850.0,0.1771]
[1609890323288,4.83,33858.0,33838.0,0.5331]
[1609890323490,0.10781,33858.0,33838.0,0.5331]
[1609890323689,4.6112,33854.0,33838.0,0.1771]
[1609890323888,0.10781,33858.0,33847.0,5.0]
[1609890324290,3.986,33850.0,33847.0,5.0]
[1609890324489,4.09489,33850.0,33847.0,5.0]
[1609890325097,0.13632608,33848.0,33847.0,5.0]
[1609890325310,5.07202608,33848.0,33847.0,4.3157]
[1609890325702,5.07202608,33848.0,33811.0,4.3637]
[1609890325892,0.13632608,33848.0,33806.0,0.1771]
[1609890326097,4.0854,33826.0,33806.0,0.1771]
[1609890326293,0.12811,33826.0,33806.0,0.1771]
[1609890326694,4.2191,33821.0,33806.0,0.1771]
[1609890327091,4.2191,33821.0,33820.0,0.13632608]
[1609890327291,0.12811,33826.0,33820.0,0.13632608]
[1609890327692,0.12811,33826.0,33820.0,6.13632608]
[1609890328293,0.2845,33847.0,33821.0,3.5002]
[1609890328493,0.2845,33847.0,33822.0,0.1771]
[1609890328696,0.2845,33847.0,33822.0,0.32431]
[1609890328893,0.0895,33846.0,33830.0,4.5535]
[1609890329093,0.2845,33847.0,33844.0,0.13632608]
[1609890329293,0.2845,33847.0,33831.0,0.12957]
[1609890330096,0.0883,33846.0,33831.0,0.12957]
[1609890330397,0.0883,33846.0,33828.0,4.1328]
[1609890330998,0.13632608,33833.0,33832.0,0.13632608]
[1609890331597,0.13632608,33833.0,33832.0,6.0]
[1609890332898,0.68242608,33833.0,33832.0,6.0]
[1609890333705,0.68242608,33833.0,33816.0,5.0]
[1609890333902,0.13632608,33833.0,33816.0,5.0]
[1609890334505,0.0886,33832.0,33816.0,5.0]
[1609890335005,0.13632608,33817.0,33816.0,5.0]
[1609890335206,0.24473608,33817.0,33816.0,5.0]
[1609890335606,0.24473608,33817.0,33816.0,6.0]
[1609890336207,0.33243608,33817.0,33816.0,6.0]
[1609890336607,4.36913608,33817.0,33816.0,6.0]
[1609890337406,4.28143608,33817.0,33816.0,6.0]
[1609890337608,0.24473608,33817.0,33816.0,1.0]
[1609890339310,4.73253608,33817.0,33816.0,1.0]
[1609890339709,4.73253608,33817.0,33815.0,1.0]
[1609890340312,0.24473608,33817.0,33815.0,1.0]
[1609890340511,3.79,33816.0,33815.0,1.0]
[1609890340712,0.24473608,33817.0,33815.0,1.0]
[1609890341713,0.10841,33817.0,33816.0,6.0]
[1609890341912,0.0036388,33825.0,33816.0,6.0]
[1609890342315,0.0036441,33830.0,33816.0,6.0]
[1609890342513,4.11233,33826.0,33816.0,6.0]
[1609890343115,0.13632608,33817.0,33816.0,6.0]
[1609890343313,0.28442608,33817.0,33816.0,6.0]
[1609890345717,0.28442608,33817.0,33809.0,0.13632608]
[1609890346318,0.28442608,33817.0,33798.0,0.295]
[1609890346520,4.13192608,33817.0,33789.0,0.14194]
[1609890346917,0.2916,33816.0,33783.0,0.1771]
[1609890347118,0.2916,33816.0,33801.0,0.13632608]
[1609890347619,0.2916,33816.0,33815.0,6.0]
[1609890347818,0.1481,33817.0,33815.0,6.0]
[1609890348420,0.0036382,33824.0,33815.0,6.0]
[1609890348620,3.8038,33816.0,33815.0,6.0]
[1609890348820,3.9356,33816.0,33815.0,5.99818562]
[1609890349021,3.9356,33816.0,33815.0,1.0]
[1609890349220,4.07192608,33816.0,33815.0,1.0]
[1609890351021,4.07192608,33816.0,33790.0,0.13632608]
[1609890351223,4.07192608,33816.0,33781.0,4.3378]
[1609890351423,0.2978,33815.0,33755.0,1.0]
[1609890351625,3.94611,33805.0,33759.0,3.8176]
[1609890352022,0.10891,33805.0,33760.0,0.2848]
[1609890352225,4.0138,33788.0,33760.0,0.2848]
[1609890352423,4.0138,33788.0,33755.0,1.0]
[1609890352623,4.11711,33788.0,33755.0,1.0]
[1609890352823,4.11711,33788.0,33756.0,0.2795]
[1609890353222,0.13632608,33768.0,33765.0,0.13632608]
[1609890353423,0.10331,33788.0,33765.0,0.13632608]
[1609890353624,3.8491,33784.0,33765.0,0.13632608]
[1609890353825,4.3209,33775.0,33765.0,0.13632608]
[1609890354227,4.3209,33775.0,33763.0,0.12313]
[1609890354625,4.3209,33775.0,33745.0,0.2755]
[1609890355226,4.3209,33775.0,33756.0,0.13632608]
[1609890355425,0.13558,33776.0,33756.0,0.13632608]
[1609890357228,0.294,33787.0,33755.0,0.13979]
[1609890358528,0.294,33787.0,33755.0,0.82099]
[1609890359130,0.13632608,33766.0,33764.0,0.13632608]
[1609890360029,0.13632608,33766.0,33755.0,0.82099]
[1609890360431,0.13632608,33766.0,33755.0,0.13979]
[1609890361032,0.13632608,33766.0,33747.0,0.13089]
[1609890361231,0.1186,33772.0,33755.0,0.13632608]
[1609890362833,0.1186,33772.0,33748.0,0.2846]
[1609890363233,0.1186,33772.0,33751.0,0.13632608]
[1609890364438,4.4347,33775.0,33751.0,0.13632608]
[1609890365239,0.13632608,33754.0,33751.0,0.13632608]
[1609890365438,0.13632608,33754.0,33747.0,0.11548]